Cogmind - Beta 16.1 @@@ ROGUE MODE // 2026.02.23 @ 18:09:30 Player: stevie364 Result: Destroyed by G-34 Mercenary with Small Laser Performance ------------- Evolutions (0) 0 Regions Visited (1) 200 Robots Destroyed (14) 70 Value Destroyed (273) 273 Prototype IDs (4) 80 Alien Tech Used (0) 0 Bonus (0) 0 TOTAL SCORE: 623 Bonus ------- None Cogmind --------- Core Integrity 0/250 Matter 300/300 Energy 100/100 System Corruption 2% Temperature Cool (6) Movement Core (700) Ox13 Location -10/Materials Parts ------- > --- POWER (1) -------- (None) > --- PROPULSION (2) --- (None) > --- UTILITY (2) ------ High-capacity Storage Unit > --- WEAPON (2) ------- (None) > --- INVENTORY (20) --- Light Ion Engine Light Nuclear Core Flight Unit Flight Unit Flight Unit Flight Unit Small Storage Unit Grenade Launcher Peak State ------------ > --- POWER ------------ Ion Engine > --- PROPULSION ------- Light Treads Light Treads > --- UTILITY ---------- Small Storage Unit Seismic Detector > --- WEAPON ----------- EM Pulse Gun Light Assault Rifle > --- INVENTORY -------- Light Ion Engine [Rating: 7] Favorites ----------- Power Ion Engine Engine Ion Engine Propulsion Light Treads Treads Light Treads Flight Unit Flight Unit Utility Seismic Detector Device Seismic Detector Storage Small Storage Unit Protection Light Armor Plating Weapon Light Assault Rifle Energy Gun EM Pulse Gun Ballistic Gun Light Assault Rifle Build | -11 -10 ------- Run | Yrd Mat Slots Evolved . | . . Power . | . . Propulsion . | . . Utility . | . . Weapon . | . . Parts Attached 12 | 7 5 Power 2 | 1 1 Engine 2 | 1 1 Core . | . . Reactor . | . . Propulsion 3 | 2 1 Treads 2 | 2 . Leg . | . . Wheel . | . . Hover . | . . Flight 1 | . 1 Utility 4 | 2 2 Device 1 | 1 . Storage 2 | 1 1 Processor . | . . Hackware . | . . Protection 1 | . 1 Artifact . | . . Weapon 3 | 2 1 Energy Gun 1 | 1 . Energy Cannon . | . . Ballistic Gun 2 | 1 1 Ballistic Cannon . | . . Launcher . | . . Special Weapon . | . . Impact Weapon . | . . Slashing Weapon . | . . Piercing Weapon . | . . Special Melee Weapon . | . . Unidentified Prototypes . | . . Parts Lost 9 | . 9 Power 2 | . 2 Propulsion 2 | . 2 Utility 2 | . 2 Weapon 3 | . 3 Highest Loss Streak 4 | . 4 To Critical Strikes . | . . Average Backups 3 | . 6 Power 1 | . 1 Propulsion 1 | . 2 Utility . | . 1 Weapon . | . . Tool/Special . | . . Unused Backups 7 | . 7 Power 3 | . 3 Propulsion 3 | . 3 Utility . | . . Weapon 1 | . 1 Tool/Special . | . . Average Slot Usage (%) 84 | . 84 Engine 13 | . 13 Treads 21 | . 21 Device 7 | . 7 Storage 14 | . 14 Protection 2 | . 2 Energy Gun 8 | . 8 Ballistic Gun 15 | . 15 Peak Build Rating 7 | 7 7 Average Rating 6 | 6 6 On Entrance 3 | . 7 Avg Prop Armor Cover (%) . | . . Naked Turns . | . . Heaviest Build 49 | 14 49 Greatest Support 40 | 40 40 Greatest Overweight (x) 15 | . 15 Average Overweight (x) 1 | . 1 Largest Inventory Capacity 20 | 8 20 Average Capacity 13 | 7 19 Most Carried 8 | 1 8 Average Carried 3 | . 6 Final Capacity 20 | 8 20 Final Carried 8 | 1 8 Class Distribution -------------------- 100% | Mutant Dominant Class ---------------- Mutant | -10/Materials Resources | -11 -10 ----------- Run | Yrd Mat Matter Collected 377 | 267 110 Remotely . | . . Salvage Created 428 | 103 325 Parts 30 | 7 23 Haulers Intercepted . | . . Recyclers Shooed . | . . Parts Field Recycled . | . . Retrieved Matter . | . . Parts Self-Destructed . | . . Prevented . | . . Parts Restored . | . . Kills | -11 -10 ------- Run | Yrd Mat Combat Hostiles Destroyed 10 | . 10 Guns 10 | . 10 Classes Destroyed 4 | 2 2 Tunneler 3 | 2 1 Recycler 1 | 1 . Swarmer 5 | . 5 Grunt 5 | . 5 Best Kill Streak 4 | 2 4 Combat Bots Only 4 | . 4 Max Kills in Single Turn 2 | 1 2 Gunslinging 1 | . 1 Exploded . | . . Melee . | . . Uniques/NPCs Destroyed . | . . Combat | -11 -10 -------- Run | Yrd Mat Hostile Shots Fired 119 | 2 117 Missed 33 | . 33 Hits 86 | 2 84 Projectile 86 | 2 84 AOE 2 | 2 . Damage Taken 992 | 72 920 Core 250 | . 250 Absorbed by Shields . | . . Core Remaining (%) 100 | 100 . Volleys Fired 60 | 9 51 Largest 2 | 2 2 Hottest 60 | 60 60 Shots Fired 97 | 18 79 Gun 97 | 18 79 Cannon . | . . Launcher . | . . Special . | . . Kinetic 70 | 9 61 Thermal . | . . Explosive . | . . Electromagnetic 27 | 9 18 Robot Hit Streak 10 | 7 10 Robot Miss Streak 6 | 2 6 Penetration Max . | . . Secondary Targets 1 | . 1 Max Gunslinging Chain 1 | . 1 Shots Hit Robots 66 | 12 54 Core Hits 27 | 5 22 Critical Kills 1 | . 1 Critical Parts Destroyed . | . . Critical Strikes 1 | . 1 Destroy 1 | . 1 Melee Attacks . | . . Impact . | . . Slashing . | . . Piercing . | . . Sneak Attacks . | . . Combat Hostiles . | . . Follow-up Attacks . | . . Damage Inflicted 663 | 137 526 Guns 660 | 137 523 Cannons . | . . Explosions . | . . Melee . | . . Ramming 3 | . 3 Kinetic 368 | 50 318 Thermal . | . . Explosive . | . . Electromagnetic 292 | 87 205 Impact . | . . Slashing . | . . Piercing . | . . Highest Corruption 2 | . 2 Average Corruption 2 | . 2 Corruption Purged . | . . Corruption Blocked . | . . Effects 14 | . 14 Message Errors 3 | . 3 Matter Fused 2 | . 2 Heat Flow Errors 2 | . 2 Energy Discharges 2 | . 2 Data Loss (minor) 4 | . 4 Data Loss (major) 1 | . 1 Overload Shots . | . . Overflow Damage . | . . Projectiles . | . . Explosions . | . . Melee . | . . Knockbacks . | . . Impact . | . . Kinetic . | . . Secondary . | . . Self-Inflicted Damage . | . . Shots . | . . Rammed 5 | . 5 Targets Rammed 5 | . 5 Kicked . | . . Crushed . | . . Highest Temperature 263 | 20 263 Average Temperature 43 | 14 47 Received Heat Transfer 399 | . 399 Siege Activations . | . . Martial Activations . | . . Shielding Activations . | . . Robots Disrupted . | . . Combat Hostiles . | . . Robots Corrupted . | . . Combat Hostiles . | . . Parts Fried . | . . Impact Corruptions . | . . Robots Melted . | . . Combat Hostiles . | . . Parts Melted . | . . Heat Transferred . | . . Parts Sabotaged . | . . Parts Stolen . | . . Parts Stripped . | . . Power Chain Reactions . | . . Alert | -11 -10 ------- Run | Yrd Mat Maximum Alert Level . | . . Low Security (%) 100 | 100 100 Level 1 . | . . Level 2 . | . . Level 3 . | . . Level 4 . | . . Level 5 . | . . High Security . | . . Max Security . | . . Peak Influence 78 | 5 78 Initial . | . . Average 9 | . 20 Influence Increases 362 | 15 347 Destroy 0b10 Robot/C 200 | . 200 Destroy 0b10 Robot/NC 20 | 15 5 Destroy Leader 40 | . 40 Successful Hack 27 | . 27 Partial Spotted 15 | . 15 Lose Combat Pursuer 60 | . 60 Influence Decreases 362 | 15 347 Time Decay 322 | 15 307 Lost Part 40 | . 40 Squads Dispatched 2 | . 2 Investigation 1 | . 1 Extermination . | . . Reinforcement 1 | . 1 Assault . | . . Garrison . | . . Intercept . | . . Searches Triggered . | . . Construction Impeded . | . . Haulers Reinforced . | . . Active Scanning Responses . | . . Cargo Convoy Interrupts . | . . Stealth | -11 -10 --------- Run | Yrd Mat Distress Signals 2 | . 2 Communications Jammed . | . . Distress Signals . | . . Times Spotted 26 | 2 24 Peak Tracking Total 4 | 2 4 Tactical Retreats 2 | . 2 Traps | -11 -10 ------- Run | Yrd Mat Traps Triggered 1 | . 1 Indirectly . | . . Trap Hack Attempts . | . . Triggered . | . . Disarmed . | . . Reprogrammed . | . . Reused . | . . Traps Extracted . | . . Installed . | . . Triggered . | . . Machines | -11 -10 ---------- Run | Yrd Mat Machines Disabled . | . . Max in Single Turn . | . . Machines Repaired . | . . Machines Dismantled . | . . Machines Sabotaged . | . . Overloaded Fab Kills . | . . Hacking | -11 -10 --------- Run | Yrd Mat Machines Accessed 3 | . 3 Terminals 3 | . 3 Fabricators . | . . Repair Stations . | . . Recycling Units . | . . Scanalyzers . | . . Garrison Access . | . . Total Hacks 16 | . 16 Successful 7 | . 7 Failed 9 | . 9 Catastrophic 1 | . 1 Database Lockouts . | . . Manual 6 | . 6 Terminals 16 | . 16 Fabricators . | . . Repair Stations . | . . Recycling Units . | . . Scanalyzers . | . . Garrison Access . | . . Terminal Hacks 6 | . 6 Prototype ID Bank 2 | . 2 Locate Traps 1 | . 1 Dispatch Records 1 | . 1 Registered Components 1 | . 1 Registered Prototypes 1 | . 1 Fabricator Hacks . | . . Repair Station Hacks . | . . Recycling Unit Hacks . | . . Scanalyzer . | . . Garrison Access Hacks . | . . Unauthorized Hacks 1 | . 1 Terminals 1 | . 1 Botnet 1 | . 1 Fabricators . | . . Repair Stations . | . . Recycling Units . | . . Scanalyzers . | . . Garrison Access . | . . Data Cores Recovered . | . . Used . | . . Hacking Detections 3 | . 3 Full Trace Events . | . . Feedback Events . | . . Feedback Blocked . | . . Robot Schematics Acquired . | . . Robots Built . | . . Authchips . | . . Time . | . . Total Robot Build Rating . | . . Part Schematics Acquired . | . . Parts Built . | . . Authchips . | . . Time . | . . Total Part Build Rating . | . . Part Studies Acquired . | . . Parts Repaired . | . . Time . | . . Parts Recycled . | . . Recycled Matter . | . . Retrieved Matter . | . . Retrieved Components . | . . Parts Scanalyzed . | . . Part Schematics Acquired . | . . Parts Damaged . | . . Bothacking | -11 -10 ------------ Run | Yrd Mat Used RIF Installer . | . . Robots Hacked . | . . Non-combat . | . . Combat . | . . Robot Hacks Applied . | . . Relay Couplers Released . | . . Fabnet Peak Effective % . | . . Robots Rewired . | . . Allies Hacked . | . . Hacks Repelled . | . . Allies | -11 -10 -------- Run | Yrd Mat Total Allies . | . . Largest Group . | . . Highest-Rated Group . | . . Highest-Rated Ally . | . . Total Orders . | . . Ally Attacks . | . . Total Damage . | . . Kills . | . . Allies Corrupted . | . . Allies Melted . | . . Intel | -11 -10 ------- Run | Yrd Mat Active Infowar (turns) 1993 | 1343 650 Seismic 1993 | 1343 650 Robot Analysis Total . | . . Derelict Logs Recovered . | . . Drone Launches . | . . Drone Recoveries . | . . Exploration | -11 -10 ------------- Run | Yrd Mat Turns Passed 2780 | 1482 1298 Spaces Moved 494 | 87 407 Core 30 | 2 28 Treads 464 | 85 379 Legs . | . . Wheels . | . . Hover . | . . Flight . | . . Fastest Speed 50 | 50 160 Average Speed 247 | 157 266 Slowest Speed 800 | 160 800 Overloaded Moves . | . . Propulsion Burnouts . | . . Robots Hopped . | . . Potential Cave-ins . | . . Cave-ins Triggered . | . . Exploration Rate (%) 39 | 5 73 Regions Visited 1 Branch Regions . Pre-discovered Areas . | . . Known Exits Taken . | . . Unknown Exits Taken 1 | 1 . Scrap Searched . | . . Spaces Dug . | . . Terrain Destroyed . | . . Melee . | . . Projectile . | . . AOE . | . . Terrain Rammed . | . . Walls Destroyed . | . . Machines Disabled . | . . Actions | -11 -10 --------- Run | Yrd Mat Total 1935 | 1412 523 Wait 1353 | 1309 44 Move 493 | 86 407 Hop . | . . Pick Up 10 | 1 9 Fast Attach 8 | 7 1 Attach 3 | . 3 Detach 1 | . 1 Swap 1 | . 1 Drop 1 | . 1 Fire 60 | 9 51 Melee . | . . Ram 5 | . 5 Kick . | . . Crush . | . . Escape Stasis . | . . Rewire . | . . Trap . | . . Miscellaneous . | . . Route ------- -11/Scrapyard -10/Materials (discovered 2 exits: [*Mat] / [*Min]) History --------- Turn | Location | Event 12 | -11/Scrapyard | Discovered new exit (range 15) 1483 | -11/Scrapyard | Assembled infested the area 1483 | -11/Scrapyard | Entered Materials 1484 | -10/Materials | Build established: Mutant 2022 | -10/Materials | Discovered new exit (range 16) 2224 | -10/Materials | Discovered new exit (range 15) 2524 | -10/Materials | Lost 4 parts (1p2n1w) 2750 | -10/Materials | Core integrity fell below 50% 2774 | -10/Materials | Core integrity fell below 20% 2781 | -10/Materials | Destroyed by G-34 Mercenary with Small Laser Last Messages --------------- 02661_ U-05 Engineer lays Concrete. 02664_ T-07 Excavator is excavating. 02672_ U-05 Engineer lays Concrete. 02672_ T-07 Excavator is excavating. 02673_ U-05 Engineer lays Concrete. 02679_ System corrupted: Component data lost. 02699_ T-07 Excavator is excavating. 02711_ U-05 Engineer builds a Wall. 02713_ T-07 Excavator is excavating. 02717_ U-05 Engineer lays Concrete. 02726_ Lgt. Armor Plating destroyed. 02743_ System corrupted: Heat flow error (+252). 02745_ Lgt. Assault Rifle destroyed. 02746_ Slammed into G-34 Mercenary. 02746_ Destabilizing: Core damaged (-2). 02753_ Slammed into G-34 Mercenary. 02762_ System corrupted: Component data lost. 02767_ Lgt. Ion Engine destroyed. 02768_ Slammed into G-34 Mercenary. 02778_ U-05 Engineer builds a Door. Map ----- +----------------------------------------------------+ | | | | | | | | | | | | | ?????????????????????????????????????????????????? | | ?????????????????????????????????????????????????? | | ?????????????????????????????????????????????????? | | ?????????????????????????????????????????????????? | | ?????????????????????????????????????????????????? | | ?????????????????????????????????????????????????? | | ?????????????????????????????????????????????????? | | ?????????????????????????????????????????????????? | | ?????????????????????????????????????????????????? | | ????????????????????#?????? ?#???????????????????? | | ????????????????????# ??? #???????????????????? | | ????????????????????# """ #???????????????????? | | ? ????????????????# """"" #???????????????????? | | ? #####??########## """"" #???????????????????? | | ? ? ??+ ## """"" #???????????????????? | | ? ? ??# ## """ #???????????????????? | | ? ? ??# ## %% #???##???#####??????? | | ? ###+#### ######+##### #???# #??????? | | ? # ## ! """ #???# %u u+ #???# < #??????? | | # # ""## """ ##### @t # #???# #??????? | | #^^^# !%Y"## """ + g #???????# #??????? | | # #*% ""## # #???????# #??????? | | # # * #####+#### #???????# #??????? | | # # #### #???????# ######## | | # #!!! %+ #######?# # # | | # #!!! #! ## # # # | | # #!! # ## """ # # ]! # | | # # # """r """ ## """ + %+= # | | ####### """ """ ## """ # # # | | #????# " " """ """ ## # # # | | #????# "T" ## ?# ######## | | #####????# """ #######?# #??????? | | ?????????# #######+## #???????# #??????? | | [??????## ####?????# ##+######### #??????? | | #?????# "#?????# #???""""" + #??????? | | #?????# ""#?????# #???""""" # #??????? | | ! #?????# ||#?????# #???""""" # #??????? | | #?????# < ""#?????# #??? ?# #??????? | | #?????# !!#?????# #?? ?# #??????? | | #?????# ""#?????# #? ??# #??????? | | ? #?????# "#?????# #?#######??# #??????? | | ??#?????## ########## ############ #??????? | | ?????????# #??????? | | ?????????# #??????? | +----------------------------------------------------+ Best States ------------- Heat Dissipation 25 Energy Generation 10 Energy Capacity 250 Matter Stores 300 Matter Capacity 300 Sight Range 16 Terrain Scan Density 10 Armor Coverage 150 Evasion (%) 40 Recoil Reduction 2 Item Schematics ----------------- None Robot Schematics ------------------ None Fabricated ------------ Nothing Repaired ---------- Nothing Studied --------- None Alien Tech Used ----------------- None Achievements -------------- Curiosity Killed The Cat Challenges ------------ None Game ------ Seed BlastExplosivePit Manual? 0 Play Time 00:11:24 Cumulative 6.8 hours Start 2026.02.23 @ 17:59:47 End 2026.02.23 @ 18:09:30 Sessions 1 Manual Loads 0 Difficulty Rogue Special Mode None Game No. 4 Rogue 4 Adventurer 0 Explorer 0 Win Type - Total 0 Types 0/0/0/0/0/0/0/0/0/0 Lore% 14 Gallery% 11 Achievement% 14 Wizard Run 0 Options --------- Layout 1 ASCII 0 Keyboard 1 Movement Arrows Keybinds 0 Fullscreen 1 Font 24/Smallcaps Map View 50x35 Zoom Use 0% Tactical HUD 1 Map Filters NONE Filters NONE Steam 1 RUN: 97f37658-b410-40de-a893-b754aef18f66